bitfinex-derivatives/quotes_ETHF0:USTF0_20241207
["timestamp","ask_amount","ask_price","bid_price","bid_amount"]
[1733560594578,0.90621789,3986.3,3986.2,4.17412907]
[1733560595471,0.90621789,3986.3,3986.2,4.17412903]
[1733560597875,0.90621789,3986.3,3986.2,4.16624481]
[1733560598076,0.90621789,3986.3,3986.2,4.88487625]
[1733560598768,0.90621789,3986.3,3986.2,45.68487625]
[1733560599282,0.90621789,3986.3,3986.2,51.57331512]
[1733560599579,0.90621789,3986.3,3986.2,10.77331512]
[1733560600472,0.90621789,3986.3,3986.2,10.77331483]
[1733560600673,0.90621789,3986.3,3986.2,6.14213135]
[1733560600870,0.90621789,3986.3,3986.2,0.25369248]
[1733560601071,0.90621789,3986.3,3986.2,0.17535]
[1733560608678,2.3449,3986.4,3986.3,0.17534]
[1733560608876,2.3449,3986.4,3986.3,4.87118946]
[1733560609079,3.8658,3987.3,3987.2,0.17531]
[1733560609290,4.11401789,3987.3,3987.2,0.17531]
[1733560609477,4.85781789,3987.3,3987.2,0.17531]
[1733560609673,3.9516,3987.3,3987.2,0.17531]
[1733560609878,4.85781789,3987.3,3987.2,4.09072137]
[1733560610480,4.85781789,3987.3,3987.2,4.8684]
[1733560610781,4.85781789,3987.3,3987.2,10.74151706]
[1733560611681,4.85781789,3987.3,3987.2,4.86862757]
[1733560612078,4.85781789,3987.3,3987.2,4.94695991]
[1733560612473,1.65001789,3987.3,3987.2,10.82007697]
[1733560612788,1.65001789,3987.3,3987.2,10.82007474]
[1733560613380,1.65001789,3987.3,3987.2,0.07833011]
[1733560613381,1.82531789,3987.3,3987.2,0.07833011]
[1733560613974,1.82531789,3987.3,3987.1,4.08943428]
[1733560613975,0.17531,3987.2,3987.1,4.08943428]
[1733560614174,0.17531,3987.2,3987.1,0.07833514]
[1733560614375,0.17531,3987.2,3987.0,3.91412428]
[1733560614578,1.65001789,3987.3,3986.9,3.91412428]
[1733560614772,1.65001789,3987.3,3986.8,3.91412428]
[1733560614773,4.11401789,3987.0,3986.8,3.91412428]
[1733560614974,0.8079,3986.9,3986.7,3.91412428]
[1733560615175,0.8079,3986.9,3986.6,4.08945428]
[1733560615176,0.8038,3986.8,3986.6,4.08945428]
[1733560615382,1.08154789,3986.7,3986.6,4.08945428]
[1733560615581,1.84364789,3986.7,3986.6,4.16780056]
[1733560615776,4.79469466,3986.7,3986.6,0.07834628]
[1733560616180,4.79469466,3986.7,3986.6,0.25367628]
[1733560616778,4.79469466,3986.7,3986.6,0.17533]
[1733560617178,4.61936466,3986.7,3986.6,0.17533]
[1733560618184,3.71314677,3986.7,3986.6,0.17533]
[1733560618384,0.7621,3986.7,3986.6,0.17533]
[1733560618986,0.8038,3986.8,3986.7,0.17533]
[1733560619290,0.8038,3986.8,3986.6,0.90621789]
[1733560619291,0.7716,3987.3,3986.6,1.56421789]
[1733560619585,1.5385,3987.3,3987.2,0.17531]
[1733560620786,3.2078,3987.4,3987.3,0.1753]
[1733560621978,3.2078,3987.4,3986.7,42.81372]
[1733560621979,3.2078,3987.4,3986.7,42.3754]
[1733560622181,3.2078,3987.4,3987.3,0.1753]
[1733560622375,3.2078,3987.4,3986.7,42.3754]
[1733560622376,3.3831,3987.4,3986.8,0.17532]
[1733560622591,3.2078,3987.4,3986.7,42.3754]
[1733560622792,3.2078,3987.4,3987.3,0.1753]
[1733560623885,3.3831,3987.4,3987.3,0.1753]
[1733560624083,3.2078,3987.4,3987.3,0.1753]
[1733560630586,3.2078,3987.4,3987.0,3.91412428]
[1733560630789,1.96144789,3987.3,3987.1,0.17531]
[1733560630990,0.7613,3987.2,3987.1,0.17531]
[1733560631191,1.5009,3987.2,3987.1,0.17531]
[1733560631386,1.5009,3987.2,3986.9,3.91412428]
[1733560631592,1.5009,3987.2,3986.8,3.91412428]
[1733560631794,0.17532,3987.0,3986.9,0.17532]
[1733560631999,0.17531,3987.1,3987.0,0.17531]
[1733560632383,0.17532,3986.9,3986.8,4.08944428]
[1733560632683,0.17532,3986.9,3986.7,4.08944428]
[1733560632884,0.17532,3986.8,3986.7,0.17533]
[1733560633088,0.17532,3986.8,3986.6,3.91412428]
[1733560633089,0.17533,3986.7,3986.6,0.17533]
[1733560634486,0.17532,3986.8,3986.7,0.17533]
[1733560634794,2.13676789,3986.9,3986.8,0.17532]
[1733560634992,3.2078,3987.0,3986.4,3.91412428]
[1733560635290,0.17531,3987.1,3986.9,0.17531]
[1733560635600,0.17532,3986.9,3986.8,0.17532]
[1733560636292,0.17532,3986.9,3986.6,3.91412428]
[1733560636497,0.8097,3986.8,3986.7,0.17532]
[1733560637899,0.8097,3986.8,3986.7,4.08944428]
[1733560638097,0.8097,3986.8,3986.7,0.17532]
[1733560639593,0.98502,3986.8,3986.7,0.17532]
[1733560639894,0.8097,3986.8,3986.4,3.2078]
[1733560640095,4.11254028,3986.7,3986.6,0.17533]
[1733560640295,3.93721028,3986.7,3986.6,0.17533]
[1733560640491,4.84280643,3986.7,3986.6,0.17533]
[1733560640694,1.08092615,3986.7,3986.6,0.17533]
[1733560641597,0.90559615,3986.7,3986.6,0.17533]
[1733560641997,3.93729737,3986.7,3986.4,3.2078]
[1733560642193,2.95282471,3986.6,3986.5,0.98674]
[1733560642588,3.93729737,3986.7,3986.6,0.17533]
[1733560644192,3.93729737,3986.8,3986.7,0.17533]
[1733560645890,3.93729737,3986.8,3986.7,0.25366631]
[1733560646091,0.97971,3987.0,3986.9,0.17532]
[1733560646287,4.18751,3987.0,3986.9,3.92251049]
[1733560646600,4.0122,3987.0,3986.8,3.92251049]
[1733560646798,0.17532,3986.8,3986.7,3.92251049]
[1733560647703,0.90559615,3986.9,3986.7,4.73836438]
[1733560647900,0.17532,3986.8,3986.7,0.17532]
[1733560648098,0.17532,3986.8,3986.7,4.9920684]
[1733560648299,0.17532,3986.8,3986.7,4.99206886]
[1733560648496,0.17532,3986.8,3986.7,4.91372765]
[1733560649599,0.17532,3986.8,3986.7,4.99206892]
[1733560649801,0.90559615,3986.9,3986.7,4.73840765]
[1733560650003,1.08091615,3986.9,3986.8,0.17532]
[1733560650203,1.08091615,3986.9,3986.8,4.09856418]
[1733560650401,0.90559615,3986.9,3986.7,5.88376574]
[1733560650608,1.08091615,3986.9,3986.8,3.92386141]
[1733560650900,0.17532,3986.9,3986.8,3.92386141]
[1733560651098,0.17532,3986.9,3986.8,4.09918141]
[1733560651099,1.08091615,3986.9,3986.8,4.09918141]
[1733560652297,1.86301615,3986.9,3986.8,4.09918141]
[1733560653004,1.86301615,3986.9,3986.7,5.88376574]
[1733560653005,1.68769615,3986.9,3986.7,0.17532]
[1733560653211,0.17532,3986.8,3986.7,0.17532]
[1733560653407,0.17532,3986.8,3986.7,0.25366114]
[1733560653800,0.17532,3986.8,3986.7,0.17533]
[1733560654104,0.17533,3986.8,3986.7,0.17533]
[1733560654607,0.17533,3986.8,3986.7,40.97533]
[1733560654810,1.68769615,3986.9,3986.1,3.29249615]
[1733560655000,1.68769615,3986.9,3986.6,0.17533]
[1733560655001,5.69714606,3986.7,3986.6,0.17533]
[1733560655200,5.87247606,3986.7,3986.6,40.97533]
[1733560656211,5.87247606,3986.7,3986.6,0.17533]
[1733560656705,5.69714606,3986.7,3986.6,0.17533]
[1733560657713,5.87247606,3986.7,3986.6,0.17533]
[1733560657909,0.17533,3986.6,3986.5,0.17533]
[1733560658207,5.87247606,3986.7,3986.6,0.17533]
[1733560658604,0.94763,3986.7,3986.6,0.17533]
[1733560660108,0.7723,3986.7,3986.6,0.17533]
[1733560660911,0.7723,3986.7,3986.6,0.2536717]
[1733560661109,0.7723,3986.7,3986.6,4.99764251]
[1733560661309,0.94763,3986.7,3986.6,4.99764251]
[1733560661513,0.94763,3986.7,3986.6,10.71223299]
[1733560661813,0.94763,3986.7,3986.6,10.88756299]
[1733560662009,0.94763,3986.7,3986.6,10.88805571]
[1733560662209,0.94763,3986.7,3986.6,10.71272571]
[1733560662409,0.94763,3986.7,3986.6,4.00557854]
[1733560662911,0.17533,3986.6,3986.5,3.92723684]
[1733560663203,1.08092615,3986.6,3986.5,4.00558548]
[1733560665206,1.08092615,3986.6,3986.5,3.92723684]
[1733560666807,0.17534,3986.5,3986.4,3.92723684]
[1733560667006,0.17534,3986.5,3986.4,4.005587]
[1733560667207,0.17534,3986.5,3986.4,4.00558701]
[1733560668114,0.17534,3986.5,3986.4,0.07835017]
[1733560668913,0.90559615,3986.6,3986.2,3.92723684]
[1733560668914,0.17534,3986.3,3986.2,3.92723684]
[1733560669115,1.08093615,3986.3,3986.2,4.00558704]
[1733560669313,1.08093615,3986.3,3986.2,3.92723684]
[1733560669519,1.69039615,3986.3,3986.0,3.92723684]
[1733560669717,1.69039615,3986.3,3985.6,3.92723684]
[1733560669718,2.95506905,3986.1,3985.6,3.92723684]
[1733560669912,0.17537,3985.7,3985.6,0.17537]
[1733560670112,0.90559615,3985.9,3985.6,0.17537]
[1733560670313,0.94377,3985.8,3985.5,7.13503684]
[1733560670507,0.90559615,3985.6,3985.5,7.13503684]
[1733560670811,0.90559615,3985.6,3985.5,4.25934213]
[1733560671006,1.08097615,3985.6,3985.5,4.00559948]
[1733560671211,1.08097615,3985.6,3985.5,0.07836264]
[1733560671212,5.87907615,3985.6,3985.5,0.07836264]
[1733560673218,0.1754,3985.1,3985.0,0.8051]
[1733560673517,0.1754,3985.0,3984.9,0.0127]
[1733560673714,1.7167,3985.0,3984.9,0.0127]
[1733560674916,4.9245,3985.0,3984.9,0.0127]
[1733560675111,0.17542,3984.5,3984.3,0.773]
[1733560675311,1.68319615,3984.4,3984.3,0.773]
[1733560675520,0.17544,3984.3,3984.0,40.97545]
[1733560675713,0.90559615,3984.1,3984.0,40.97545]
[1733560676211,0.90559615,3984.1,3983.2,3.2078]
[1733560676413,3.2078,3984.2,3983.2,3.2078]
[1733560676414,0.90559615,3983.6,3983.4,0.17547]
[1733560676613,0.90559615,3983.6,3983.5,40.8]
[1733560676810,0.90559615,3983.6,3983.5,40.97547]
[1733560677211,0.90559615,3983.6,3983.5,0.17547]
[1733560678426,0.90559615,3983.6,3983.4,40.8]
[1733560678427,0.90559615,3983.9,3983.8,0.17545]
[1733560678627,3.2078,3984.2,3983.9,0.17545]
[1733560678816,3.2078,3984.2,3984.0,0.17545]
[1733560681132,1.5596,3984.3,3983.6,3.2078]
[1733560681427,1.96477284,3984.7,3983.7,0.798]
[1733560681428,3.54527284,3984.7,3983.7,0.798]
[1733560681613,3.72069284,3984.7,3984.4,0.17543]
[1733560681819,3.54527284,3984.7,3984.5,0.17542]
[1733560682629,3.54527284,3984.7,3984.6,0.17542]
[1733560683131,1.96477284,3984.7,3984.6,0.17542]
[1733560686129,5.17257284,3984.7,3984.4,0.17543]
[1733560686327,5.17257284,3984.7,3984.0,3.2078]
[1733560686627,1.96477284,3984.3,3984.2,0.17543]
[1733560689720,1.96477284,3984.3,3983.4,40.8]
[1733560689721,5.17257284,3984.3,3983.4,40.8]
[1733560689928,5.17257284,3984.3,3983.7,0.17546]
[1733560689929,1.96477284,3983.8,3983.7,0.17546]
[1733560697328,1.95268347,3983.8,3983.7,0.17546]
[1733560699331,1.95268347,3983.8,3983.7,0.25385899]
[1733560702543,0.907035,3983.8,3983.7,0.07839899]
[1733560702844,0.25088499,3983.9,3983.8,0.17545]
[1733560703037,1.15791999,3983.9,3983.8,0.17545]
[1733560703238,1.15791999,3983.9,3983.8,0.25384875]
[1733560706240,1.15791999,3983.9,3983.8,0.17545]
[1733560710339,0.17546,3983.8,3983.7,0.17546]
[1733560710541,4.36571999,3983.9,3983.7,0.17546]
[1733560710542,7.97878904,3983.9,3983.7,0.17546]
[1733560710738,7.97878904,3983.9,3982.6,0.658]
[1733560710739,0.43873,3983.1,3981.2,9.81715732]
[1733560711049,5.02187,3982.2,3980.8,41.23897]
[1733560711339,0.907035,3982.8,3980.9,0.17558]
[1733560711340,0.907035,3981.0,3980.9,0.17558]
[1733560711840,0.907035,3981.0,3980.9,40.97558]
[1733560712639,1.96795154,3981.0,3980.9,40.97558]
[1733560713037,1.96795154,3981.0,3980.9,0.17558]
[1733560714138,2.74965154,3981.0,3980.9,0.17558]
[1733560718451,3.40765154,3981.0,3980.9,0.17558]
[1733560719645,4.13655154,3981.0,3980.9,0.17558]
[1733560721045,4.13655154,3981.0,3980.3,40.8]
[1733560721344,1.96795154,3980.4,3980.3,40.97561]
[1733560721544,1.96795154,3980.4,3980.3,0.17561]
[1733560724346,7.62595154,3980.4,3979.4,3.92723684]
[1733560724548,7.62595154,3980.4,3979.3,6.02690048]
[1733560724549,5.17575154,3979.5,3979.3,0.13698]
[1733560724751,5.17575154,3979.5,3979.3,1e-08]
[1733560724953,5.17575154,3979.5,3979.4,0.17565]
[1733560731252,5.17575154,3979.5,3979.3,1e-08]
[1733560731452,5.17575154,3979.5,3979.3,0.17565]
[1733560731453,5.35140154,3979.5,3979.3,0.17565]
[1733560732452,5.17575154,3979.5,3979.4,0.17565]
[1733560735554,5.42689739,3979.5,3979.4,0.17565]
[1733560738457,5.17575154,3979.5,3979.4,0.17565]
[1733560738871,1.96795154,3979.5,3979.4,0.25413086]
[1733560739363,1.96795154,3979.5,3979.4,1.79193086]
[1733560740361,1.96795154,3979.5,3979.4,1.79192197]
[1733560740764,1.96795154,3979.6,3979.4,1.61627197]
[1733560740963,0.7846,3979.9,3979.8,0.17563]
[1733560741163,0.7846,3979.9,3979.8,0.25410197]
[1733560742964,1.96795154,3979.9,3979.8,0.25410197]
[1733560744568,5.17575154,3980.3,3980.2,0.17561]
[1733560744779,5.17575154,3980.3,3980.2,0.25408197]
[1733560745366,1.96795154,3980.3,3980.2,41.05408197]
[1733560745870,1.96795154,3980.3,3980.2,40.97561]
[1733560746066,1.96795154,3980.3,3980.2,0.25406763]
[1733560746872,1.96795154,3980.3,3980.2,1.00206763]
[1733560747072,5.17575154,3980.7,3980.6,0.17559]
[1733560747282,5.17575154,3980.7,3980.6,0.25404763]
[1733560747979,1.96795154,3980.7,3980.6,0.25404763]
[1733560749676,1.96795154,3980.7,3980.6,0.25404528]
[1733560750670,5.17575154,3981.1,3980.6,0.07845528]
[1733560750978,5.17575154,3981.1,3981.0,0.17558]
[1733560751280,5.17575154,3981.1,3981.0,0.25403528]
[1733560751481,5.17575154,3981.1,3981.0,0.17558]
[1733560753183,3.2078,3981.1,3981.0,0.17558]
[1733560753979,5.17575154,3981.1,3980.3,0.43903]
[1733560754179,0.17558,3981.0,3980.9,0.17558]
[1733560754484,0.17558,3981.0,3980.8,0.17558]
[1733560754777,5.84275154,3981.1,3980.9,0.17558]
[1733560754778,6.01833154,3981.1,3980.9,0.17558]
[1733560754979,6.01833154,3981.1,3980.3,0.43903]
[1733560754980,5.17575154,3981.1,3981.0,0.17558]
[1733560755479,5.17575154,3981.1,3980.3,0.43903]
[1733560755684,0.17558,3981.0,3980.9,0.17558]
[1733560755882,0.17558,3981.0,3980.8,0.17559]
[1733560756184,5.17575154,3981.1,3979.9,1.19466]
[1733560756383,5.17575154,3981.1,3980.8,0.17558]
[1733560756384,0.17558,3981.0,3980.8,0.17558]
[1733560756588,0.17558,3980.9,3980.8,0.17558]
[1733560757280,0.17558,3981.0,3980.2,0.43904]
[1733560757490,0.17558,3980.9,3980.8,0.17558]
[1733560757681,0.17558,3981.0,3980.3,0.17561]
[1733560757881,0.17558,3980.9,3980.8,0.17558]
[1733560758287,0.17558,3980.9,3979.9,5.10045557]
[1733560758288,5.17575154,3981.1,3980.1,3.64685]
[1733560758485,0.17558,3980.9,3980.8,0.17558]
[1733560758788,5.17575154,3981.1,3980.8,0.07845315]
[1733560758988,0.17558,3981.0,3980.8,0.17558]
[1733560759183,0.17558,3981.0,3980.7,3.90579557]
[1733560759378,0.17558,3981.0,3980.9,0.17558]
[1733560759578,5.17575154,3981.1,3981.0,0.17558]
[1733560759786,5.35132154,3981.1,3981.0,0.17558]
[1733560760292,5.17575154,3981.1,3981.0,0.17558]
[1733560760490,3.2078,3981.1,3981.0,0.17558]
[1733560760787,3.2078,3981.1,3981.0,4.96447063]
[1733560761288,5.84275154,3981.1,3981.0,7.21286399]
[1733560761588,0.1756,3980.6,3980.4,0.1756]
[1733560761784,1.96795154,3980.6,3980.4,0.1756]
[1733560761984,2.14355154,3980.6,3980.4,0.1756]
[1733560762680,1.96795154,3980.6,3980.5,0.1756]
[1733560763083,0.1756,3980.5,3980.3,0.1756]
[1733560763585,0.1756,3980.5,3980.1,3.93345509]
[1733560764085,1.96795154,3980.6,3980.3,0.1756]
[1733560764282,1.96795154,3980.6,3980.4,0.1756]
[1733560764482,0.7801,3980.5,3980.4,0.1756]
[1733560765076,0.7801,3980.5,3980.2,3.93345509]
[1733560765492,0.9557,3980.5,3980.1,3.93345509]
[1733560765695,0.9557,3980.5,3980.4,0.1756]
[1733560765986,0.7801,3980.5,3980.4,0.1756]
[1733560767490,4.88584898,3980.6,3979.3,3.2078]
[1733560767786,4.88584898,3980.6,3979.1,0.17566]
[1733560767787,0.17566,3979.3,3979.1,0.17566]
[1733560767984,0.95605,3979.5,3979.3,0.17565]
[1733560768184,0.95605,3979.5,3979.2,0.17565]
[1733560768185,1.73935,3979.5,3979.2,0.17565]
[1733560768391,0.17565,3979.3,3978.9,0.17567]
[1733560768592,0.17566,3979.1,3978.7,3.2078]
[1733560768792,0.17566,3979.1,3978.9,0.17567]
[1733560769090,4.48159744,3979.5,3978.8,0.17567]
[1733560769288,0.17565,3979.4,3978.7,3.2078]
[1733560769490,2.91789744,3979.4,3978.8,0.17567]
[1733560769790,0.17565,3979.3,3978.9,0.17567]
[1733560769985,0.17565,3979.3,3978.7,3.2078]
[1733560769986,2.91789744,3979.4,3978.7,3.2078]
[1733560770191,1.5637,3979.5,3979.3,0.17565]
[1733560771786,1.5637,3979.5,3979.4,0.17565]
[1733560773692,1.5637,3979.5,3978.7,3.2078]
[1733560773884,4.65724744,3979.5,3979.1,0.17566]
[1733560774090,1.96795154,3979.2,3979.1,0.17566]
[1733560774293,1.96795154,3979.2,3978.9,3.93345509]
[1733560774294,1.96795154,3979.2,3978.9,4.10912509]
[1733560774498,1.96795154,3979.2,3979.0,0.0784892]
[1733560774699,0.7766,3979.1,3978.9,4.10912509]
[1733560774891,0.7766,3979.1,3979.0,0.07848991]
[1733560775193,0.7766,3979.1,3979.0,0.17567]
[1733560775398,0.7766,3979.1,3979.0,0.07848861]
[1733560775598,0.7766,3979.1,3978.9,3.93345509]
[1733560776096,0.7766,3979.1,3978.4,8.53639115]
[1733560776097,0.7766,3979.1,3978.8,3.93345509]
[1733560776298,0.95226,3979.1,3978.8,0.17567]
[1733560776596,0.7766,3979.1,3978.8,0.17567]
[1733560776791,0.7766,3979.1,3978.6,3.93345509]
[1733560776994,1.96795154,3978.8,3978.7,0.17568]
[1733560778189,0.17568,3978.7,3978.4,0.17569]
[1733560778400,0.58188,3978.7,3978.2,3.93345509]
[1733560778587,0.394,3978.6,3978.4,0.17569]
[1733560778792,3.2078,3978.5,3978.1,3.93345509]
[1733560779000,1.96795154,3978.2,3978.1,4.10916509]
[1733560779196,1.96795154,3978.2,3978.1,4.18766956]
[1733560779387,1.96795154,3978.2,3978.1,0.25421447]
[1733560779595,1.96795154,3978.2,3978.1,0.17571]
[1733560780093,1.96795154,3978.2,3978.0,3.93345509]
[1733560780291,1.96795154,3978.2,3977.9,0.17571]
[1733560780693,1.96795154,3978.2,3977.8,0.17572]
[1733560780897,2.14365154,3978.2,3977.8,0.17572]
[1733560781092,1.96795154,3978.2,3977.7,3.2078]
[1733560781396,1.96795154,3977.8,3977.7,0.17572]
[1733560784292,0.801,3977.9,3977.1,40.8]
[1733560784600,3.8858,3978.1,3978.0,0.17571]
[1733560784896,4.6763,3978.1,3978.0,0.17571]
[1733560785093,3.9983,3978.1,3978.0,0.17571]
[1733560785294,3.9983,3978.1,3977.9,0.17571]
[1733560785489,3.9983,3978.1,3978.0,0.17571]
[1733560786598,3.9983,3978.1,3977.4,0.43935]
[1733560786599,1.96795154,3977.5,3977.4,0.17574]
[1733560789604,2.35115154,3977.5,3977.0,0.4082]
[1733560789803,3.2078,3977.3,3977.0,0.4082]
[1733560790004,3.2078,3977.3,3977.2,0.17575]
[1733560792793,0.3959,3977.4,3977.0,0.4082]
[1733560792998,0.3959,3977.4,3977.3,0.17574]
[1733560794203,0.3959,3977.4,3977.3,0.25425937]
[1733560794601,0.3959,3977.4,3977.3,0.17574]
[1733560795109,0.3959,3977.4,3977.3,0.254259]
[1733560795898,0.3959,3977.4,3977.3,0.17574]
[1733560796304,0.3959,3977.4,3977.3,0.25426231]
[1733560796505,0.3959,3977.4,3977.3,0.17574]
[1733560796907,0.3959,3977.4,3977.3,0.25426279]
[1733560797401,1.96795154,3977.5,3977.4,0.17574]
[1733560797602,1.96795154,3977.5,3977.4,0.25426279]
[1733560798909,1.96795154,3977.5,3977.4,0.17574]
[1733560799111,1.96795154,3977.5,3977.4,0.25426067]
[1733560799611,2.37825154,3977.5,3977.4,0.25426067]
[1733560799912,1.96795154,3977.5,3977.4,0.17574]
[1733560800107,1.96795154,3977.5,3977.4,0.25426012]
[1733560802409,1.96795154,3977.5,3977.4,0.25426265]
[1733560803810,1.96795154,3977.5,3977.4,0.17574]
[1733560805316,1.96795154,3977.5,3977.4,0.25425533]
[1733560805615,1.96795154,3977.5,3977.4,0.17574]
[1733560805812,1.96795154,3977.5,3977.4,0.25425275]
[1733560806318,1.96795154,3977.5,3977.4,0.25426148]
[1733560806514,1.96795154,3977.5,3977.4,0.25426167]
[1733560808911,1.96795154,3977.5,3977.4,0.17574]
[1733560809121,1.96795154,3977.5,3977.4,0.25425828]
[1733560809621,3.2078,3977.7,3977.6,0.17573]
[1733560809817,3.2078,3977.7,3977.6,0.25424828]
[1733560811422,3.2078,3977.7,3977.6,4.17743877]
[1733560811622,3.2078,3977.7,3977.6,0.25424828]
[1733560812012,3.2078,3977.7,3977.6,4.58373877]
[1733560812423,3.2078,3977.7,3977.6,5.24377442]
[1733560812716,3.2078,3977.7,3977.6,4.59410609]
[1733560813418,3.2078,3977.7,3977.6,5.24406659]
[1733560816623,4.11757482,3977.7,3977.6,5.24406659]
[1733560818425,4.11757482,3977.7,3977.6,0.66054828]
[1733560819223,0.8095,3978.0,3977.9,0.17571]
[1733560819425,0.90977482,3978.2,3978.1,0.17571]
[1733560819924,0.8034,3978.5,3978.4,0.17569]
[1733560820219,1.71317482,3978.5,3978.4,0.25419134]
[1733560820422,0.90977482,3978.5,3978.4,0.25419134]
[1733560821022,0.90977482,3978.5,3978.4,4.45796319]
[1733560821217,0.90977482,3978.5,3978.4,4.19441319]
[1733560821422,0.90977482,3978.5,3978.4,4.28362103]
[1733560821925,0.90977482,3978.5,3978.4,4.19441319]
[1733560822122,0.90977482,3978.5,3978.4,4.11591185]
[1733560822521,1.4864,3979.0,3978.4,4.6176377]
[1733560822522,1.97018815,3978.8,3978.4,4.6176377]
[1733560822716,1.97018815,3978.8,3978.7,0.17568]
[1733560825627,0.8034,3979.0,3978.8,0.17567]
[1733560826426,0.8034,3979.0,3978.9,0.17567]
[1733560826822,0.8034,3979.0,3978.9,0.25415912]
[1733560827027,0.8034,3979.0,3978.9,4.19770333]
[1733560827331,0.8034,3979.0,3978.9,0.17567]
[1733560827715,0.8034,3979.0,3978.9,4.19770346]
[1733560828416,0.8034,3979.0,3978.9,0.17567]
[1733560830932,5.17798815,3979.1,3978.8,0.4131]
[1733560831128,1.97018815,3979.1,3979.0,0.17567]
[1733560831328,1.97018815,3979.5,3979.4,0.17565]
[1733560833525,3.9886,3979.6,3979.5,0.17564]
[1733560833929,0.7808,3979.6,3979.5,0.17564]
[1733560835434,3.2078,3980.0,3979.9,0.17563]
[1733560836335,0.7521,3980.1,3980.0,0.17562]
[1733560838232,0.7521,3980.1,3979.6,0.7928]
[1733560838931,0.7521,3980.1,3980.0,0.17562]
[1733560839731,0.7521,3980.1,3979.6,0.3936]
[1733560840028,3.2078,3979.7,3979.6,0.17564]
[1733560840738,0.3836,3979.9,3979.8,0.17563]
[1733560841538,0.55923,3979.9,3979.7,0.17563]
[1733560841842,0.3836,3979.9,3979.8,0.17563]
[1733560842941,1.58167041,3980.0,3979.9,0.17563]
[1733560843143,3.9599,3980.1,3980.0,0.17562]
[1733560844438,3.9599,3980.1,3979.8,0.3752]
[1733560844439,3.2078,3980.5,3979.9,0.90867041]
[1733560844634,2.92727892,3980.7,3980.5,0.1756]
[1733560844635,0.3876,3980.6,3980.5,0.1756]
[1733560844938,0.3902,3980.7,3980.0,0.83176]
[1733560845134,0.3902,3980.7,3980.6,0.1756]
[1733560846045,0.3902,3980.7,3980.5,0.1756]
[1733560846551,3.2078,3980.6,3980.5,0.1756]
[1733560847046,3.2078,3980.6,3980.4,0.1756]
[1733560847445,3.3834,3980.6,3980.3,0.17561]
[1733560847641,0.3986,3980.5,3980.3,0.17561]
[1733560847840,0.3986,3980.5,3980.0,0.3927]
[1733560848041,5.17587274,3980.2,3979.0,3.2078]
[1733560848236,5.17587274,3980.2,3980.0,0.17562]
[1733560848444,0.7712,3980.1,3980.0,0.17562]
[1733560848645,0.3816,3980.1,3980.0,0.17562]
[1733560849151,0.3816,3980.1,3979.5,0.3974]
[1733560849547,0.3816,3980.1,3980.0,0.17562]
[1733560850752,0.3816,3980.1,3979.9,0.17562]
[1733560851347,0.3816,3980.1,3979.5,0.3974]
[1733560851754,0.3816,3980.1,3979.9,0.17562]
[1733560852140,0.17563,3979.9,3979.6,0.17564]
[1733560852355,0.3851,3979.8,3979.6,0.17564]
[1733560852659,0.3851,3979.8,3979.7,0.17564]
[1733560852854,0.7879,3979.8,3979.7,0.17564]
[1733560854949,3.9957,3979.8,3979.7,0.17564]
[1733560857446,3.2078,3979.8,3979.7,0.17564]
[1733560858945,0.17564,3979.6,3979.4,41.36445]
[1733560859152,0.4012,3979.7,3979.2,0.4074]
[1733560859357,0.4016,3979.5,3979.4,0.17565]
[1733560864459,0.4016,3979.5,3979.4,0.2541321]
[1733560866251,0.4012,3979.7,3979.4,0.0784821]
[1733560866456,3.2078,3979.8,3979.5,0.16672011]
[1733560866753,3.2078,3979.8,3979.3,6.32513077]
[1733560866754,3.2078,3979.8,3979.7,0.17564]
[1733560866951,3.2078,3979.8,3979.7,4.28264156]
[1733560867458,3.2078,3979.8,3979.7,4.28263628]
[1733560868256,3.2078,3979.8,3979.7,4.9678762]
[1733560869265,3.2078,3979.8,3979.7,0.2541118]
[1733560869458,3.2078,3979.8,3979.7,4.19559163]
[1733560869666,3.2078,3979.8,3979.7,0.2541118]
[1733560869859,3.2078,3979.8,3979.7,4.1956128]
[1733560870060,3.2078,3979.8,3979.7,4.88005973]
[1733560870363,3.2078,3979.8,3979.7,0.2541118]
[1733560870761,3.2078,3979.8,3979.7,4.88081699]
[1733560871271,3.2078,3979.8,3979.7,10.79594776]
[1733560871455,3.2078,3979.8,3979.7,10.71747596]
[1733560871655,3.2078,3979.8,3979.7,0.17564]
[1733560872363,7.11083857,3979.8,3979.7,0.17564]
[1733560872758,3.2078,3979.8,3979.7,0.17564]
[1733560872960,7.13461357,3979.8,3979.7,0.17564]
[1733560873262,3.2078,3979.8,3979.7,0.17564]
[1733560874765,7.13691529,3979.8,3979.7,0.17564]
[1733560875563,3.2078,3979.8,3979.7,0.17564]
[1733560876665,3.2078,3979.8,3979.2,0.4074]
[1733560876968,0.90866361,3979.6,3979.5,0.17564]
[1733560878158,0.17564,3979.5,3979.3,0.17565]
[1733560878465,4.9110863,3979.4,3979.3,0.17565]
[1733560878765,0.17565,3979.4,3979.3,10.77352234]
[1733560879072,0.56485,3979.5,3979.3,10.94917234]
[1733560879268,0.56485,3979.5,3979.4,4.0253026]
[1733560880763,0.56485,3979.5,3979.4,0.07848209]
[1733560881169,0.56485,3979.5,3979.4,0.07848676]
[1733560881665,0.17565,3979.4,3979.3,3.94682051]
[1733560881870,3.38345,3979.4,3979.3,3.94682051]
[1733560882167,3.38345,3979.4,3979.3,4.02530809]
[1733560882372,3.38345,3979.4,3979.3,0.07848758]
[1733560884779,3.38345,3979.4,3979.3,0.07848822]
[1733560885067,3.2078,3979.4,3979.0,3.94682051]
[1733560885271,0.90866361,3979.1,3978.7,3.94682051]
[1733560885461,4.2815711,3978.8,3978.7,4.12053763]
[1733560885666,4.2815711,3978.8,3978.7,4.19903205]
[1733560886276,4.2815711,3978.8,3978.7,0.25417442]
[1733560886873,4.2815711,3978.8,3978.7,4.19903205]
[1733560888270,4.2815711,3978.8,3978.7,4.19903456]
[1733560888771,4.1058911,3978.8,3978.7,4.19903456]
[1733560889275,4.1058911,3978.8,3978.7,0.25417693]
[1733560890371,4.1058911,3978.8,3978.7,0.17568]